lending/lending_fUSD_20240710
["ID","MTS","AMOUNT","RATE_DAILY","PERIOD"]
[331605530,1720578728024,-1266.15,0.00014047,2]
[331605531,1720578728034,-500.0,0.00014047,2]
[331605532,1720578728043,-1326.83,0.00014047,2]
[331605533,1720578728053,-714.26,0.00014047,2]
[331605534,1720578728062,-570.72,0.00014047,2]
[331605535,1720578728070,-500.0,0.00014047,2]
[331605536,1720578728080,-2502.21,0.00014047,2]
[331605537,1720578728089,-3059.3,0.00014047,3]
[331605538,1720578728098,-500.0,0.00014047,2]
[331605539,1720578728107,-905.75,0.00014047,2]
[331605540,1720578728118,-2000.0,0.00014047,2]
[331605541,1720578728127,-1000.0,0.00014047,2]
[331605542,1720578728136,-500.0,0.00014047,2]
[331605543,1720578728145,-500.0,0.00014048,2]
[331605544,1720578728155,-500.0,0.00014048,2]
[331605545,1720578728164,-863.45,0.00014048,2]
[331605546,1720578728173,-692.27,0.00014048,2]
[331605547,1720578728182,-1710.86,0.00014048,2]
[331605548,1720578728192,-500.0,0.00014048,2]
[331605549,1720578728201,-500.0,0.00014048,2]
[331605550,1720578728210,-2134.95,0.00014048,2]
[331605551,1720578728220,-212.71593017,0.00014048,2]
[331605552,1720578728229,-500.0,0.00014048,2]
[331605553,1720578728239,-500.0,0.00014048,2]
[331605554,1720578728248,-500.0,0.00014048,2]
[331605555,1720578728257,-500.0,0.00014048,2]
[331605556,1720578728266,-500.0,0.00014048,2]
[331605557,1720578728276,-1192.7,0.00014048,2]
[331605558,1720578728286,-325.75154716,0.00014048,2]
[331605559,1720578728294,-1517.28,0.00014048,2]
[331605560,1720578728303,-500.0,0.00014048,2]
[331605561,1720578728312,-1017.28,0.00014048,2]
[331605562,1720578728321,-379.36048127,0.00014048,2]
[331605563,1720578728331,-1181.86,0.00014048,2]
[331605564,1720578728339,-500.0,0.00014048,2]
[331605565,1720578728348,-654.08,0.00014048,2]
[331605566,1720578728357,-500.0,0.00014048,2]
[331605567,1720578728368,-987.54,0.00014048,2]
[331605568,1720578728378,-500.0,0.00014048,2]
[331605569,1720578728387,-2995.94,0.00014048,2]
[331605570,1720578728396,-1054.31,0.00014048,2]
[331605571,1720578728405,-2165.91,0.00014048,2]
[331605572,1720578728415,-500.0,0.00014048,2]
[331605573,1720578728424,-607.6,0.00014048,2]
[331605574,1720578728433,-1354.21,0.00014048,2]
[331605575,1720578728442,-1784.17,0.00014048,2]
[331605576,1720578728451,-500.0,0.00014048,2]
[331605577,1720578728460,-500.0,0.00014048,2]
[331605578,1720578728469,-1937.6,0.00014048,2]
[331605579,1720578728479,-516.92,0.00014048,2]
[331605580,1720578728620,-1991.09,0.00014048,2]
[331605581,1720578728632,-1109.41,0.00014048,2]
[331605582,1720578728642,-1472.59,0.00014048,2]
[331605583,1720578728651,-2752.23,0.00014048,2]
[331605584,1720578728661,-2851.3,0.00014048,2]
[331605585,1720578728671,-500.0,0.00014048,2]
[331605586,1720578728680,-500.0,0.00014048,2]
[331605587,1720578728690,-1647.37,0.00014048,2]
[331605588,1720578728699,-2067.21,0.00014048,2]
[331605589,1720578728709,-1761.2,0.00014048,2]
[331605590,1720578728719,-732.14,0.00014048,2]
[331605591,1720578728728,-1232.3,0.00014048,2]
[331605592,1720578728738,-2391.69,0.00014048,2]
[331605593,1720578728748,-526.95,0.00014048,2]
[331605594,1720578728757,-500.0,0.00014048,2]
[331605595,1720578728767,-547.38,0.00014048,2]
[331605596,1720578728776,-585.5,0.00014048,2]
[331605597,1720578728786,-500.0,0.00014048,2]
[331605598,1720578728796,-500.0,0.00014048,2]
[331605599,1720578728805,-1452.15,0.00014048,2]
[331605600,1720578728815,-1107.7,0.00014048,2]
[331605601,1720578728825,-500.0,0.00014048,2]
[331605602,1720578728834,-1314.31,0.00014048,2]
[331605603,1720578728844,-500.0,0.00014048,2]
[331605604,1720578728854,-500.0,0.00014048,2]
[331605605,1720578728867,-1357.14,0.00014048,2]
[331605606,1720578728877,-1164.74,0.00014048,2]
[331605607,1720578728888,-500.0,0.00014048,2]
[331605608,1720578728898,-1463.89,0.00014048,2]
[331605609,1720578728907,-500.0,0.00014048,2]
[331605610,1720578728917,-500.0,0.00014048,2]
[331605611,1720578728927,-2541.37,0.00014048,2]
[331605612,1720578728936,-500.0,0.00014048,2]
[331605613,1720578728947,-398.86322903,0.00014048,2]
[331605614,1720578728956,-2269.15,0.00014048,2]
[331605615,1720578728966,-500.0,0.00014048,2]
[331605616,1720578728975,-500.0,0.00014048,2]
[331605617,1720578728985,-500.0,0.00014048,2]
[331605618,1720578728994,-500.0,0.00014048,2]
[331605619,1720578729004,-653.53,0.00014048,2]
[331605620,1720578729013,-677.36,0.00014048,2]
[331605621,1720578729023,-1092.06,0.00014048,2]
[331605622,1720578729033,-500.0,0.00014048,2]
[331605623,1720578729043,-1563.68,0.00014048,2]
[331605624,1720578729053,-706.32,0.00014048,2]
[331605625,1720578729063,-500.0,0.00014048,2]
[331605626,1720578729072,-652.31,0.00014048,2]
[331605627,1720578729082,-1323.65,0.00014048,2]
[331605628,1720578729091,-500.0,0.00014048,2]
[331605629,1720578729101,-3373.37,0.00014048,2]
[331605630,1720578729111,-500.0,0.00014048,2]
[331605631,1720578729120,-500.0,0.00014048,2]
[331605632,1720578729130,-1551.53,0.00014048,2]
[331605633,1720578729141,-500.0,0.00014048,2]
[331605634,1720578729150,-1840.96,0.00014048,2]
[331605635,1720578729160,-500.0,0.00014048,2]
[331605636,1720578729170,-335.46604488,0.00014048,2]
[331605637,1720578729180,-500.0,0.00014048,2]
[331605638,1720578729189,-500.0,0.00014048,2]
[331605639,1720578729199,-500.0,0.00014048,2]
[331605640,1720578729209,-2752.03,0.00014048,2]
[331605641,1720578729219,-1628.17,0.00014048,2]
[331605642,1720578729229,-500.0,0.00014048,2]
[331605643,1720578729239,-500.0,0.00014048,2]
[331605644,1720578729248,-865.68,0.00014048,2]
[331605645,1720578729257,-576.36,0.00014048,2]
[331605646,1720578729267,-641.54879401,0.00014048,2]
[331605647,1720578729276,-500.0,0.00014048,2]
[331605648,1720578729285,-500.0,0.00014048,2]
[331605649,1720578729294,-2288.17,0.00014048,2]
[331605650,1720578729304,-500.0,0.00014048,2]
[331605651,1720578729314,-630.4,0.00014048,2]
[331605652,1720578729323,-2161.78,0.00014048,2]
[331605653,1720578729333,-2212.0,0.00014048,2]
[331605654,1720578729342,-500.0,0.00014048,2]
[331605655,1720578729351,-500.0,0.00014048,2]
[331605656,1720578729361,-743.11,0.00014048,2]
[331605657,1720578729371,-1387.02,0.00014048,2]
[331605658,1720578729380,-885.74,0.00014048,2]
[331605659,1720578729389,-500.0,0.00014048,2]
[331605660,1720578729399,-2201.53,0.00014048,2]
[331605661,1720578729408,-500.0,0.00014048,2]
[331605662,1720578729417,-1500.63,0.00014048,2]
[331605663,1720578729427,-2690.13,0.00014048,2]
[331605664,1720578729437,-500.0,0.00014048,2]
[331605665,1720578729446,-755.58,0.00014048,2]
[331605666,1720578729455,-500.0,0.00014048,2]
[331605667,1720578729465,-970.09,0.00014048,2]
[331605668,1720578729474,-500.0,0.00014048,2]
[331605669,1720578729483,-3077.31,0.00014048,2]
[331605670,1720578729492,-500.0,0.00014048,2]
[331605671,1720578729502,-500.0,0.00014048,2]
[331605672,1720578729511,-500.0,0.00014048,2]
[331605673,1720578729520,-507.74,0.00014048,2]
[331605674,1720578729530,-1219.64,0.00014048,2]
[331605675,1720578729539,-3164.67,0.00014048,2]
[331605676,1720578729549,-500.0,0.00014048,2]
[331605677,1720578729558,-500.0,0.00014048,2]
[331605678,1720578729568,-652.98,0.00014048,2]
[331605679,1720578729577,-550.88,0.00014048,2]
[331605680,1720578729586,-1941.67,0.00014048,2]
[331605681,1720578729595,-500.0,0.00014048,2]
[331605682,1720578729605,-2774.62,0.00014048,2]
[331605683,1720578729615,-295.45569579,0.00014048,2]
[331605684,1720578729624,-500.0,0.00014048,2]
[331605685,1720578729634,-938.84,0.00014048,2]
[331605686,1720578729643,-500.0,0.00014048,2]
[331605687,1720578729652,-500.0,0.00014048,2]
[331605688,1720578729663,-912.5,0.00014048,2]
[331605689,1720578729673,-500.0,0.00014048,2]
[331605690,1720578729683,-1216.41,0.00014048,2]
[331605691,1720578729692,-1061.39,0.00014048,2]
[331605692,1720578729702,-500.0,0.00014048,2]
[331605693,1720578729712,-2518.94,0.00014048,2]
[331605694,1720578729722,-500.0,0.00014048,2]
[331605695,1720578729732,-500.0,0.00014048,2]
[331605696,1720578729742,-3436.86,0.00014048,2]
[331605697,1720578729752,-500.0,0.00014048,2]
[331605698,1720578729761,-1247.03,0.00014048,2]
[331605699,1720578729771,-1304.47,0.00014048,2]
[331605700,1720578729780,-500.0,0.00014048,2]
[331605701,1720578729790,-500.0,0.00014048,2]
[331605702,1720578729800,-5696.56,0.00014048,2]
[331605703,1720578729810,-711.42,0.00014048,2]
[331605704,1720578729820,-2106.9,0.00014048,2]
[331605705,1720578729829,-639.14,0.00014048,2]
[331605706,1720578729839,-500.0,0.00014048,2]
[331605707,1720578729848,-500.0,0.00014048,2]
[331605708,1720578729858,-2398.73,0.00014048,2]
[331605709,1720578729871,-500.0,0.00014048,2]
[331605710,1720578729883,-500.0,0.00014048,2]
[331605711,1720578729893,-733.34,0.00014048,2]
[331605712,1720578729904,-500.0,0.00014048,2]
[331605713,1720578729914,-507.93,0.00014048,2]
[331605714,1720578729924,-1148.15,0.00014048,2]
[331605715,1720578729934,-727.9,0.00014048,2]
[331605716,1720578729944,-500.0,0.00014048,2]
[331605717,1720578729954,-1772.75,0.00014048,2]
[331605718,1720578729964,-527.91,0.00014048,2]
[331605719,1720578729974,-2234.89,0.00014048,2]
[331605720,1720578729984,-834.6,0.00014048,2]
[331605721,1720578729994,-500.0,0.00014048,2]
[331605722,1720578730003,-500.0,0.00014048,2]
[331605723,1720578730013,-500.0,0.00014048,2]
[331605724,1720578730023,-500.0,0.00014048,2]
[331605725,1720578730033,-500.0,0.00014048,2]
[331605726,1720578730043,-500.0,0.00014048,2]
[331605727,1720578730053,-1143.34,0.00014048,2]
[331605728,1720578730062,-500.25,0.00014048,2]
[331605729,1720578730072,-1170.38,0.00014048,2]
[331605730,1720578730082,-2893.92,0.00014048,2]
[331605731,1720578730092,-1410.52,0.00014048,2]
[331605732,1720578730102,-2703.57,0.00014048,2]
[331605733,1720578730112,-500.0,0.00014048,2]
[331605734,1720578730122,-500.0,0.00014048,2]
[331605735,1720578730132,-500.0,0.00014048,2]
[331605736,1720578730142,-710.8,0.00014048,2]
[331605737,1720578730152,-500.0,0.00014048,2]
[331605738,1720578730162,-924.07,0.00014048,2]
[331605739,1720578730172,-980.01,0.00014048,2]
[331605740,1720578730182,-1580.34,0.00014048,2]
[331605741,1720578730192,-500.0,0.00014048,2]
[331605742,1720578730202,-2432.31,0.00014048,2]
[331605743,1720578730211,-500.0,0.00014048,2]
[331605744,1720578730221,-1464.91,0.00014048,2]
[331605745,1720578730231,-500.0,0.00014048,2]
[331605746,1720578730240,-500.0,0.00014048,2]
[331605747,1720578730250,-500.0,0.00014048,2]
[331605748,1720578730260,-500.0,0.00014048,2]
[331605749,1720578730269,-500.0,0.00014048,2]
[331605750,1720578730281,-2887.55,0.00014048,2]
[331605751,1720578730290,-897.43,0.00014048,2]
[331605752,1720578730299,-1140.5,0.00014048,2]
[331605753,1720578730308,-1197.44,0.00014048,2]
[331605754,1720578730318,-500.0,0.00014048,2]
[331605755,1720578730327,-573.03,0.00014048,2]
[331605756,1720578730336,-2491.04,0.00014048,2]
[331605757,1720578730345,-824.06,0.00014048,2]
[331605758,1720578730355,-502.79,0.00014048,2]
[331605759,1720578730365,-3605.84,0.00014048,2]
[331605760,1720578730375,-500.0,0.00014048,2]
[331605761,1720578730385,-500.0,0.00014048,2]
[331605762,1720578730395,-500.0,0.00014048,2]
[331605763,1720578730404,-500.0,0.00014048,2]
[331605764,1720578730413,-622.46,0.00014048,2]
[331605765,1720578730423,-1513.67,0.00014048,2]
[331605766,1720578730432,-739.12,0.00014048,2]
[331605767,1720578730442,-500.0,0.00014048,2]
[331605768,1720578730451,-901.58,0.00014048,2]
[331605769,1720578730461,-695.45,0.00014048,2]
[331605770,1720578730471,-500.0,0.00014048,2]
[331605771,1720578730480,-500.0,0.00014048,2]
[331605772,1720578730490,-500.0,0.00014048,2]
[331605773,1720578730499,-500.0,0.00014048,2]
[331605774,1720578730509,-3305.33,0.00014048,2]
[331605775,1720578730518,-658.31,0.00014048,2]
[331605776,1720578730528,-500.0,0.00014048,2]
[331605777,1720578730537,-695.74,0.00014048,2]
[331605778,1720578730547,-3723.61,0.00014048,2]
[331605779,1720578730556,-631.74,0.00014048,2]
[331605780,1720578730566,-500.0,0.00014048,2]
[331605781,1720578730576,-500.0,0.00014048,2]
[331605782,1720578730585,-1842.59,0.00014048,2]
[331605783,1720578730595,-500.0,0.00014048,2]
[331605784,1720578730604,-550.23,0.00014048,2]
[331605785,1720578730616,-500.0,0.00014048,2]
[331605786,1720578730625,-500.0,0.00014048,2]
[331605787,1720578730635,-1071.25,0.00014048,2]
[331605788,1720578730644,-1388.45,0.00014048,2]
[331605789,1720578730654,-500.0,0.00014048,2]
[331605790,1720578730664,-500.0,0.00014048,2]
[331605791,1720578730673,-500.0,0.00014048,2]
[331605792,1720578730683,-500.0,0.00014048,2]
[331605793,1720578730692,-3126.15,0.00014048,2]
[331605794,1720578730702,-963.4,0.00014048,2]
[331605795,1720578730711,-500.0,0.00014048,2]
[331605796,1720578730721,-2473.23,0.00014048,2]
[331605797,1720578730731,-500.0,0.00014048,2]
[331605798,1720578731111,-500.0,0.00014048,2]
[331605799,1720578731131,-978.08,0.00014048,2]
[331605800,1720578731140,-2795.73,0.00014048,2]
[331605801,1720578731151,-5532.13,0.00014048,2]
[331605802,1720578731161,-2866.95,0.00014048,2]
[331605803,1720578731171,-500.0,0.00014048,2]
[331605804,1720578731180,-1148.88,0.00014048,2]
[331605805,1720578731190,-809.3,0.00014048,2]
[331605806,1720578731199,-1515.65,0.00014048,2]
[331605807,1720578731209,-500.0,0.00014048,2]
[331605808,1720578731218,-1912.64,0.00014048,2]
[331605809,1720578731228,-505.8,0.00014048,2]
[331605810,1720578731237,-3926.91,0.00014048,2]
[331605811,1720578731247,-233.24571504,0.00014048,2]
[331605812,1720578731256,-627.06,0.00014048,2]
[331605813,1720578731266,-1067.87,0.00014048,2]
[331605814,1720578731276,-839.35,0.00014048,2]
[331605815,1720578731286,-3821.49,0.00014048,2]
[331605816,1720578731295,-544.95,0.00014048,2]
[331605817,1720578731304,-1604.72,0.00014048,2]
[331605818,1720578731314,-1862.31,0.00014048,2]
[331605819,1720578731323,-500.0,0.00014048,2]
[331605820,1720578731333,-4888.15,0.00014048,2]
[331605821,1720578731343,-381.78638456,0.00014048,2]
[331605822,1720578731353,-500.0,0.00014048,2]
[331605823,1720578731363,-500.0,0.00014048,2]
[331605824,1720578731372,-1623.67,0.00014048,2]
[331605825,1720578731382,-1273.12,0.00014048,2]
[331605826,1720578731392,-500.0,0.00014048,2]
[331605827,1720578731403,-661.72,0.00014048,2]
[331605828,1720578731414,-500.0,0.00014048,2]
[331605829,1720578731424,-500.0,0.00014048,2]
[331605830,1720578731433,-924.69,0.00014048,2]
[331605831,1720578731444,-597.61,0.00014048,2]
[331605832,1720578731455,-500.0,0.00014048,2]
[331605833,1720578731464,-1501.83,0.00014048,2]
[331605834,1720578731474,-1858.17,0.00014048,2]
[331605835,1720578731484,-500.0,0.00014048,2]
[331605836,1720578731493,-545.13,0.00014048,2]
[331605837,1720578731503,-500.0,0.00014048,2]
[331605838,1720578731513,-500.0,0.00014048,2]
[331605839,1720578731522,-500.0,0.00014048,2]
[331605840,1720578731533,-171.80680276,0.00014048,2]
[331605841,1720578731542,-1401.76,0.00014048,2]
[331605842,1720578731551,-500.0,0.00014048,2]
[331605843,1720578731560,-500.0,0.00014048,2]
[331605844,1720578731569,-739.11,0.00014048,2]
[331605845,1720578731579,-1061.57,0.00014048,2]
[331605846,1720578731589,-741.03,0.00014048,2]
[331605847,1720578731600,-537.65,0.00014048,2]
[331605848,1720578731609,-684.66,0.00014048,2]
[331605849,1720578731619,-1265.1,0.00014048,2]
[331605850,1720578731628,-500.0,0.00014048,2]
[331605851,1720578731637,-664.94,0.00014048,2]
[331605852,1720578731648,-1170.81,0.00014048,2]
[331605853,1720578731660,-500.0,0.00014048,2]
[331605854,1720578731670,-2691.6,0.00014048,2]
[331605855,1720578731680,-500.0,0.00014048,2]
[331605856,1720578731689,-500.0,0.00014048,2]
[331605857,1720578731700,-575.14,0.00014048,2]
[331605858,1720578731710,-1204.35,0.00014048,2]
[331605859,1720578731720,-500.0,0.00014048,2]
[331605860,1720578731730,-500.0,0.00014048,2]
[331605861,1720578731740,-787.9,0.00014048,2]
[331605862,1720578731749,-924.35,0.00014048,2]
[331605863,1720578731759,-500.0,0.00014048,2]
[331605864,1720578731768,-500.0,0.00014048,2]
[331605865,1720578731777,-1245.72,0.00014048,2]
[331605866,1720578731787,-650.77,0.00014048,2]
[331605867,1720578731797,-3616.61,0.00014048,2]
[331605868,1720578731806,-1304.79,0.00014048,2]
[331605869,1720578731815,-500.0,0.00014048,2]
[331605870,1720578731824,-841.57,0.00014048,2]
[331605871,1720578731833,-500.0,0.00014048,2]
[331605872,1720578731842,-5575.91,0.00014048,2]
[331605873,1720578731851,-1042.86,0.00014048,2]
[331605874,1720578731861,-500.0,0.00014048,2]
[331605875,1720578731870,-500.0,0.00014048,2]
[331605876,1720578731880,-500.0,0.00014048,2]
[331605877,1720578731890,-500.0,0.00014048,2]
[331605878,1720578731900,-1071.56,0.00014048,2]
[331605879,1720578731909,-1264.05,0.00014048,2]
[331605880,1720578731918,-2114.46,0.00014048,2]
[331605881,1720578731927,-500.0,0.00014048,2]
[331605882,1720578731936,-500.0,0.00014048,2]
[331605883,1720578731945,-500.0,0.00014048,2]
[331605884,1720578731954,-538.86,0.00014048,2]
[331605885,1720578731963,-500.0,0.00014048,2]
[331605886,1720578731974,-500.0,0.00014048,2]
[331605887,1720578731983,-457.70294642,0.00014048,2]
[331605888,1720578731992,-1099.76,0.00014048,2]
[331605889,1720578732001,-3471.64,0.00014048,2]
[331605890,1720578732011,-614.93,0.00014048,2]
[331605891,1720578732020,-500.0,0.00014048,2]
[331605892,1720578732030,-500.0,0.00014048,2]
[331605893,1720578732039,-632.86,0.00014048,2]
[331605894,1720578732049,-500.0,0.00014048,2]
[331605895,1720578732058,-500.0,0.00014048,2]
[331605896,1720578732067,-1814.83,0.00014048,2]
[331605897,1720578732077,-659.18,0.00014048,2]
[331605898,1720578732086,-1436.02,0.00014048,2]
[331605899,1720578732096,-500.0,0.00014048,2]
[331605900,1720578732105,-1085.35,0.00014048,2]
[331605901,1720578732115,-4481.36,0.00014048,2]
[331605902,1720578732125,-500.0,0.00014048,2]
[331605903,1720578732134,-1900.38,0.00014048,2]
[331605904,1720578732144,-2722.72,0.00014048,2]
[331605905,1720578732154,-500.0,0.00014048,2]
[331605906,1720578732164,-500.0,0.00014048,2]
[331605907,1720578732173,-1043.36,0.00014048,2]
[331605908,1720578732182,-927.02,0.00014048,2]
[331605909,1720578732192,-612.29,0.00014048,2]
[331605910,1720578732202,-500.0,0.00014048,2]
[331605911,1720578732212,-500.0,0.00014048,2]
[331605912,1720578732221,-500.0,0.00014048,2]
[331605913,1720578732231,-3154.74,0.00014048,2]
[331605914,1720578732240,-500.0,0.00014048,2]
[331605915,1720578732249,-500.0,0.00014048,2]
[331605916,1720578732259,-3281.01,0.00014048,2]
[331605917,1720578732268,-500.0,0.00014048,2]
[331605918,1720578732277,-500.0,0.00014048,2]
[331605919,1720578732286,-500.0,0.00014048,2]
[331605920,1720578732296,-1356.64,0.00014048,2]
[331605921,1720578732305,-666.44,0.00014048,2]
[331605922,1720578732315,-1501.48,0.00014048,2]
[331605923,1720578732324,-1807.88,0.00014048,2]
[331605924,1720578732334,-500.0,0.00014048,2]
[331605925,1720578732343,-349.42064733,0.00014048,2]
[331605926,1720578732352,-500.0,0.00014048,2]
[331605927,1720578732362,-500.0,0.00014048,2]
[331605928,1720578732371,-500.0,0.00014048,2]
[331605929,1720578732381,-500.0,0.00014048,2]
[331605930,1720578732390,-1143.16,0.00014048,2]
[331605931,1720578732400,-500.0,0.00014048,2]
[331605932,1720578732409,-500.0,0.00014048,2]
[331605933,1720578732418,-596.40066182,0.00014048,2]
[331605934,1720578732429,-500.0,0.00014048,2]
[331605935,1720578732438,-1071.26,0.00014048,2]
[331605936,1720578732448,-725.99,0.00014048,2]
[331605937,1720578732460,-568.75,0.00014048,2]
[331605938,1720578732470,-980.17,0.00014048,2]
[331605939,1720578732479,-1193.03,0.00014048,2]
[331605940,1720578732489,-1433.96,0.00014048,2]
[331605941,1720578732499,-500.0,0.00014048,2]
[331605942,1720578732509,-500.0,0.00014048,2]
[331605943,1720578732519,-500.0,0.00014048,2]
[331605944,1720578732530,-1363.71,0.00014048,2]
[331605945,1720578732541,-500.0,0.00014048,2]
[331605946,1720578732551,-968.12,0.00014048,2]
[331605947,1720578732561,-500.0,0.00014048,2]
[331605948,1720578732571,-3207.44,0.00014048,2]
[331605949,1720578732580,-1828.72,0.00014048,2]
[331605950,1720578732591,-717.01,0.00014048,2]
[331605951,1720578732601,-500.0,0.00014048,2]
[331605952,1720578732611,-1258.63,0.00014048,2]
[331605953,1720578732621,-1127.54,0.00014048,2]
[331605954,1720578732631,-745.98,0.00014048,2]
[331605955,1720578732641,-500.0,0.00014048,2]
[331605956,1720578732651,-500.0,0.00014048,2]
[331605957,1720578732662,-500.0,0.00014048,2]
[331605958,1720578732671,-1290.64,0.00014048,2]
[331605959,1720578732681,-571.53,0.00014048,2]
[331605960,1720578732690,-500.0,0.00014048,2]
[331605961,1720578732700,-1292.58,0.00014048,2]
[331605962,1720578732710,-1042.23,0.00014048,2]
[331605963,1720578732719,-500.0,0.00014048,2]
[331605964,1720578732729,-1174.42,0.00014048,2]
[331605965,1720578732739,-1580.24,0.00014048,2]
[331605966,1720578732748,-5426.52,0.00014048,2]
[331605967,1720578732758,-1054.05,0.00014048,2]
[331605968,1720578732768,-1811.79,0.00014048,2]
[331605969,1720578732778,-500.0,0.00014048,2]
[331605970,1720578732788,-500.0,0.00014048,2]
[331605971,1720578732798,-182.79425181,0.00014048,2]
[331605972,1720578732807,-1125.78,0.00014048,2]
[331605973,1720578732818,-500.0,0.00014048,2]
[331605974,1720578732827,-500.0,0.00014048,2]
[331605975,1720578732838,-500.0,0.00014048,2]
[331605976,1720578732847,-802.8,0.00014048,2]
[331605977,1720578732858,-500.0,0.00014048,2]
[331605978,1720578732871,-500.0,0.00014048,2]
[331605979,1720578732881,-2890.79,0.00014048,2]
[331605980,1720578732890,-1403.19,0.00014048,2]
[331605981,1720578732899,-971.81,0.00014048,2]
[331605982,1720578732910,-535.47,0.00014048,2]
[331605983,1720578732920,-518.73,0.00014048,2]
[331605984,1720578732930,-4305.73,0.00014048,2]
[331605985,1720578732940,-943.48,0.00014048,2]
[331605986,1720578732951,-3242.01,0.00014048,2]
[331605987,1720578732961,-2193.03,0.00014048,2]
[331605988,1720578732972,-589.11,0.00014048,2]
[331605989,1720578732982,-500.0,0.00014048,2]
[331605990,1720578732992,-1793.51,0.00014048,2]
[331605991,1720578733002,-500.0,0.00014048,2]
[331605992,1720578733012,-754.1,0.00014048,2]
[331605993,1720578733022,-2661.75,0.00014048,2]
[331605994,1720578733032,-2319.09,0.00014048,2]
[331605995,1720578733042,-500.0,0.00014048,2]
[331605996,1720578733051,-567.35,0.00014048,2]
[331605997,1720578733060,-689.55,0.00014048,2]
[331605998,1720578733071,-2557.46,0.00014048,2]
[331605999,1720578733079,-500.0,0.00014048,2]
[331606000,1720578733089,-658.27,0.00014048,2]
[331606001,1720578733099,-713.54,0.00014048,2]
[331606002,1720578733109,-502.13,0.00014048,2]
[331606003,1720578733123,-500.0,0.00014048,2]
[331606004,1720578733132,-1271.47,0.00014048,2]
[331606005,1720578733143,-640.0,0.00014048,2]
[331606006,1720578733153,-1083.72,0.00014048,2]
[331606007,1720578733164,-3740.98,0.00014048,2]
[331606008,1720578733174,-500.0,0.00014048,2]
[331606009,1720578733183,-1162.5,0.00014048,2]
[331606010,1720578733193,-1248.4,0.00014048,2]
[331606011,1720578733202,-518.4,0.00014048,2]
[331606012,1720578733211,-500.0,0.00014048,2]
[331606013,1720578733220,-500.0,0.00014048,2]
[331606014,1720578733229,-500.0,0.00014048,2]
[331606015,1720578733238,-1181.57,0.00014048,2]
[331606016,1720578733248,-1309.73,0.00014048,2]
[331606017,1720578733258,-836.41,0.00014048,2]
[331606018,1720578733268,-1305.44,0.00014048,2]
[331606019,1720578733277,-500.0,0.00014048,2]
[331606020,1720578733287,-500.0,0.00014048,2]
[331606021,1720578733296,-765.33,0.00014048,2]
[331606022,1720578733306,-500.0,0.00014048,2]
[331606023,1720578733315,-3127.47,0.00014048,2]
[331606024,1720578733325,-1479.51,0.00014048,2]
[331606025,1720578733335,-500.0,0.00014048,2]
[331606026,1720578733345,-644.76,0.00014048,2]
[331606027,1720578733355,-794.79,0.00014048,2]
[331606028,1720578733365,-867.35,0.00014048,2]
[331606029,1720578733375,-1986.59,0.00014048,2]